fUSD/lending_fUSD_20250109
["ID","MTS","AMOUNT","RATE_DAILY","PERIOD"]
[348332674,1736448640299,-500.0,9.794e-05,2]
[348332675,1736448640309,-500.0,9.794e-05,2]
[348332676,1736448640318,-500.0,9.794e-05,2]
[348332677,1736448640327,-500.0,9.794e-05,2]
[348332678,1736448640337,-500.0,9.794e-05,2]
[348332679,1736448640346,-500.0,9.794e-05,2]
[348332680,1736448640357,-500.0,9.794e-05,2]
[348332681,1736448640368,-500.0,9.794e-05,2]
[348332682,1736448640379,-500.0,9.794e-05,2]
[348332683,1736448640389,-500.0,9.794e-05,2]
[348332684,1736448640399,-500.0,9.794e-05,2]
[348332685,1736448640410,-500.0,9.794e-05,2]
[348332686,1736448640421,-500.0,9.794e-05,2]
[348332687,1736448640433,-500.0,9.794e-05,2]
[348332688,1736448640443,-500.0,9.794e-05,2]
[348332689,1736448640457,-500.0,9.794e-05,2]
[348332690,1736448640467,-500.0,9.794e-05,2]
[348332691,1736448640477,-500.0,9.794e-05,2]
[348332692,1736448640487,-165.47077202,9.794e-05,2]
[348332693,1736448640497,-500.0,9.794e-05,2]
[348332694,1736448640507,-500.0,9.794e-05,2]
[348332695,1736448640516,-500.0,9.794e-05,2]
[348332696,1736448640526,-500.0,9.794e-05,2]
[348332697,1736448640535,-500.0,9.794e-05,2]
[348332698,1736448640544,-679.27,9.794e-05,2]
[348332699,1736448640554,-500.0,9.794e-05,2]
[348332700,1736448640563,-633.23,9.794e-05,2]
[348332701,1736448640573,-500.0,9.794e-05,2]
[348332702,1736448640582,-500.0,9.794e-05,2]
[348332703,1736448640678,-500.0,9.794e-05,2]
[348332704,1736448640688,-500.0,9.794e-05,2]
[348332705,1736448640697,-500.0,9.794e-05,2]
[348332706,1736448640706,-311.21,9.794e-05,2]
[348332707,1736448640715,-517.17581537,9.794e-05,2]
[348332708,1736448640725,-500.0,9.794e-05,2]
[348332709,1736448640734,-881.23,9.794e-05,2]
[348332710,1736448640744,-500.0,9.794e-05,2]
[348332711,1736448640753,-500.0,9.794e-05,2]
[348332712,1736448640762,-868.39,9.794e-05,2]
[348332713,1736448640772,-500.0,9.794e-05,2]
[348332714,1736448640781,-500.0,9.794e-05,2]
[348332715,1736448640791,-500.0,9.794e-05,2]
[348332716,1736448640801,-500.0,9.794e-05,2]
[348332717,1736448640811,-500.0,9.794e-05,2]
[348332718,1736448640822,-500.0,9.794e-05,2]
[348332719,1736448640831,-500.0,9.794e-05,2]
[348332720,1736448640840,-500.0,9.794e-05,2]
[348332721,1736448640850,-500.0,9.794e-05,2]
[348332722,1736448640860,-500.0,9.794e-05,2]
[348332723,1736448640869,-500.0,9.794e-05,2]
[348332724,1736448640878,-500.0,9.794e-05,2]
[348332725,1736448640888,-500.0,9.794e-05,2]
[348332726,1736448640897,-500.0,9.794e-05,2]
[348332727,1736448640906,-500.0,9.794e-05,2]
[348332728,1736448640916,-500.0,9.794e-05,2]
[348332729,1736448640925,-500.0,9.794e-05,2]
[348332730,1736448640934,-588.17,9.794e-05,2]
[348332731,1736448640943,-500.0,9.794e-05,2]
[348332732,1736448640952,-500.0,9.794e-05,2]
[348332733,1736448640961,-500.0,9.794e-05,2]
[348332734,1736448640971,-500.0,9.794e-05,2]
[348332735,1736448640980,-500.0,9.794e-05,2]
[348332736,1736448640989,-500.0,9.794e-05,2]
[348332737,1736448640999,-554.0,9.794e-05,2]
[348332738,1736448641008,-500.0,9.794e-05,2]
[348332739,1736448641017,-500.0,9.794e-05,2]
[348332740,1736448641026,-500.0,9.794e-05,2]
[348332741,1736448641035,-500.0,9.794e-05,2]
[348332742,1736448641044,-551.3,9.794e-05,2]
[348332743,1736448641054,-500.0,9.794e-05,2]
[348332744,1736448641063,-500.0,9.794e-05,2]
[348332745,1736448641072,-500.0,9.794e-05,2]
[348332746,1736448641082,-500.0,9.794e-05,2]
[348332748,1736448641092,-536.65,9.794e-05,2]
[348332750,1736448641102,-500.0,9.794e-05,2]
[348332752,1736448641111,-500.0,9.794e-05,2]
[348332754,1736448641122,-500.0,9.794e-05,2]
[348332756,1736448641132,-527.0,9.794e-05,2]
[348332758,1736448641141,-612.55,9.794e-05,2]
[348332760,1736448641151,-376.50601829,9.794e-05,2]
[348332762,1736448641160,-500.0,9.794e-05,2]
[348332764,1736448641170,-500.0,9.794e-05,2]
[348332766,1736448641179,-500.0,9.794e-05,2]
[348332768,1736448641188,-48.48993313,9.794e-05,2]
[348332771,1736448641200,-451.51006687,9.794e-05,2]
[348332773,1736448641210,-500.0,9.794e-05,2]
[348332775,1736448641219,-500.0,9.794e-05,2]
[348332777,1736448641229,-500.0,9.794e-05,2]
[348332779,1736448641238,-976.46,9.794e-05,2]
[348332781,1736448641247,-500.0,9.794e-05,2]
[348332783,1736448641257,-500.0,9.794e-05,2]
[348332784,1736448641266,-500.0,9.794e-05,2]
[348332785,1736448641275,-500.0,9.794e-05,2]
[348332786,1736448641284,-630.87,9.794e-05,2]
[348332787,1736448641293,-500.0,9.794e-05,2]
[348332788,1736448641302,-500.0,9.794e-05,2]
[348332789,1736448641312,-500.0,9.794e-05,2]
[348332790,1736448641322,-724.82,9.794e-05,2]
[348332791,1736448641331,-500.0,9.794e-05,2]
[348332792,1736448641341,-500.0,9.794e-05,2]
[348332793,1736448641351,-517.83,9.799e-05,2]
[348332794,1736448641361,-500.0,9.799e-05,2]
[348332795,1736448641370,-556.95,9.799e-05,2]
[348332796,1736448641380,-878.6,9.799e-05,2]
[348332797,1736448641389,-500.0,9.799e-05,2]
[348332798,1736448641399,-500.0,9.799e-05,2]
[348332799,1736448641408,-735.29,9.799e-05,2]
[348332800,1736448641417,-500.0,9.799e-05,2]
[348332801,1736448641427,-500.0,9.799e-05,2]
[348332802,1736448641437,-4298.01672193,9.799e-05,2]
[348332803,1736448642748,-500.0,9.794e-05,2]
[348332804,1736448642758,-500.0,9.794e-05,2]
[348332805,1736448642768,-3843.53327807,9.799e-05,2]
[348332806,1736448642778,-1558.55,9.799e-05,2]
[348332807,1736448642788,-150.0,9.818e-05,2]
[348332808,1736448642797,-1141.29,9.862e-05,2]
[348332809,1736448642807,-954.41,9.862e-05,2]
[348332810,1736448642817,-500.0,9.862e-05,2]
[348332811,1736448642827,-500.0,9.862e-05,2]
[348332812,1736448642837,-500.0,9.862e-05,2]
[348332813,1736448642847,-500.0,9.862e-05,2]
[348332814,1736448642857,-500.0,9.862e-05,2]
[348332815,1736448642867,-500.0,9.863e-05,2]
[348332816,1736448642877,-500.0,9.863e-05,2]
[348332817,1736448642887,-500.0,9.863e-05,2]
[348332818,1736448642898,-500.0,9.863e-05,2]
[348332819,1736448642908,-4308.1140671,9.863e-05,2]
[348332820,1736448642918,-500.0,9.863e-05,2]
[348332821,1736448642928,-500.0,9.863e-05,2]
[348332822,1736448642939,-500.0,9.863e-05,2]
[348332823,1736448642948,-500.0,9.863e-05,2]
[348332824,1736448642958,-743.15,9.863e-05,2]
[348332825,1736448642968,-500.0,9.863e-05,2]
[348332826,1736448642978,-721.17,9.863e-05,2]
[348332827,1736448642988,-500.0,9.863e-05,2]
[348332828,1736448642998,-500.0,9.863e-05,2]
[348332829,1736448643008,-500.0,9.863e-05,2]
[348332830,1736448643018,-500.0,9.863e-05,2]
[348332831,1736448643028,-500.0,9.863e-05,2]
[348332832,1736448643038,-500.0,9.863e-05,2]
[348332833,1736448643048,-500.0,9.863e-05,2]
[348332834,1736448643058,-500.0,9.863e-05,2]
[348332835,1736448643068,-522.72,9.863e-05,2]
[348332836,1736448643077,-500.0,9.863e-05,2]
[348332837,1736448643087,-500.0,9.863e-05,2]
[348332838,1736448643097,-503.0,9.863e-05,2]
[348332839,1736448643107,-500.0,9.863e-05,2]
[348332840,1736448643117,-500.0,9.863e-05,2]
[348332841,1736448643127,-896.3,9.863e-05,2]
[348332842,1736448643137,-1131.17,9.863e-05,2]
[348332843,1736448643147,-500.0,9.863e-05,2]
[348332845,1736448643157,-584.61,9.863e-05,2]
[348332847,1736448643167,-500.0,9.863e-05,2]
[348332848,1736448643177,-500.0,9.863e-05,2]
[348332849,1736448643187,-825.71,9.863e-05,2]
[348332850,1736448643197,-500.0,9.863e-05,2]
[348332851,1736448643207,-500.0,9.863e-05,2]
[348332852,1736448643217,-952.06,9.863e-05,2]
[348332853,1736448643228,-500.0,9.863e-05,2]
[348332854,1736448643238,-500.0,9.863e-05,2]
[348332855,1736448643248,-500.0,9.863e-05,2]
[348332856,1736448643258,-730.74,9.863e-05,2]
[348332857,1736448643268,-500.0,9.863e-05,2]
[348332858,1736448643277,-500.0,9.863e-05,2]
[348332859,1736448643287,-500.0,9.863e-05,2]
[348332860,1736448643296,-500.0,9.863e-05,2]
[348332862,1736448643306,-500.0,9.863e-05,2]
[348332863,1736448643316,-909.68,9.863e-05,2]
[348332864,1736448643327,-500.0,9.863e-05,2]
[348332865,1736448643336,-500.0,9.863e-05,2]
[348332866,1736448643347,-500.0,9.863e-05,2]
[348332867,1736448643358,-631.64,9.863e-05,2]
[348332868,1736448643369,-500.0,9.863e-05,2]
[348332869,1736448643379,-500.0,9.863e-05,2]
[348332871,1736448643389,-500.0,9.863e-05,2]
[348332874,1736448643399,-500.0,9.863e-05,2]
[348332877,1736448643409,-788.95,9.863e-05,2]
[348332879,1736448643420,-500.0,9.863e-05,2]
[348332881,1736448643430,-859.3,9.863e-05,2]
[348332882,1736448643443,-549.54,9.863e-05,2]
[348332883,1736448643456,-500.0,9.863e-05,2]
[348332884,1736448643465,-661.04,9.863e-05,2]
[348332885,1736448643475,-730.69,9.863e-05,2]
[348332886,1736448643485,-921.18,9.863e-05,2]
[348332887,1736448643495,-671.14,9.863e-05,2]
[348332888,1736448643504,-500.0,9.863e-05,2]
[348332889,1736448643514,-500.0,9.863e-05,2]
[348332890,1736448643524,-500.0,9.863e-05,2]
[348332891,1736448643534,-500.0,9.863e-05,2]
[348332892,1736448643544,-500.0,9.863e-05,2]
[348332893,1736448643554,-679.68,9.863e-05,2]
[348332894,1736448643564,-511.27,9.863e-05,2]
[348332895,1736448643574,-3826.38,9.863e-05,2]
[348332896,1736448643584,-500.0,9.863e-05,2]
[348332897,1736448643594,-561.97,9.863e-05,2]
[348332898,1736448643605,-541.21,9.863e-05,2]
[348332899,1736448643615,-2658.79,9.863e-05,2]
[348332900,1736448643626,-500.0,9.863e-05,2]
[348332901,1736448643636,-500.0,9.863e-05,2]
[348332902,1736448643646,-856.41,9.863e-05,2]
[348332903,1736448643656,-832.36,9.863e-05,2]
[348332904,1736448643667,-500.0,9.863e-05,2]
[348332905,1736448643677,-796.28,9.863e-05,2]
[348332906,1736448643688,-2704.69,9.863e-05,2]
[348332907,1736448643698,-915.08,9.863e-05,2]
[348332908,1736448643709,-581.71,9.863e-05,2]
[348332909,1736448643719,-580.57,9.863e-05,2]
[348332910,1736448643729,-500.0,9.863e-05,2]
[348332911,1736448643740,-897.78,9.863e-05,2]
[348332912,1736448643750,-500.0,9.863e-05,2]
[348332913,1736448643760,-726.18,9.863e-05,2]
[348332914,1736448643771,-500.0,9.863e-05,2]
[348332915,1736448643782,-240.54567727,9.863e-05,2]
[348332916,1736448643791,-502.88,9.863e-05,2]
[348332917,1736448643802,-500.0,9.863e-05,2]
[348332918,1736448643812,-232.0710927,9.863e-05,2]
[348332919,1736448643822,-500.0,9.863e-05,2]
[348332920,1736448643832,-937.21,9.863e-05,2]
[348332921,1736448643842,-500.0,9.863e-05,2]
[348332922,1736448643851,-501.70798032,9.863e-05,2]
[348332923,1736448643861,-765.76,9.863e-05,2]
[348332924,1736448643871,-500.0,9.863e-05,2]
[348332925,1736448643881,-500.0,9.863e-05,2]
[348332926,1736448643891,-505.31944535,9.863e-05,2]
[348332927,1736448643901,-500.0,9.863e-05,2]
[348332928,1736448643911,-500.0,9.863e-05,2]
[348332929,1736448643920,-574.82,9.863e-05,2]
[348332930,1736448643930,-734.5,9.863e-05,2]
[348332932,1736448643942,-507.85,9.863e-05,2]
[348332935,1736448643952,-500.0,9.863e-05,2]
[348332938,1736448643962,-500.0,9.863e-05,2]
[348332941,1736448643972,-500.0,9.863e-05,2]
[348332944,1736448643982,-500.0,9.864e-05,2]
[348332946,1736448643992,-698.07,9.864e-05,2]
[348332948,1736448644003,-838.93,9.864e-05,2]
[348332950,1736448644014,-500.0,9.864e-05,2]
[348332952,1736448644024,-500.0,9.864e-05,2]
[348332954,1736448644034,-500.0,9.864e-05,2]
[348332955,1736448644044,-503.39,9.864e-05,2]
[348332956,1736448644055,-879.04,9.864e-05,2]
[348332974,1736448644277,-500.0,9.864e-05,2]
[348332976,1736448644287,-500.0,9.864e-05,2]
[348332978,1736448644297,-1235.49,9.864e-05,2]
[348332980,1736448644306,-1263.59,9.864e-05,2]
[348332982,1736448644316,-1158.77,9.864e-05,2]
[348332984,1736448644326,-1541.59,9.864e-05,2]
[348332986,1736448644335,-2975.42,9.864e-05,2]
[348332988,1736448644344,-1448.16,9.864e-05,2]
[348332990,1736448644353,-1652.13,9.864e-05,2]
[348332992,1736448644363,-1030.33,9.864e-05,2]
[348332994,1736448644373,-708.66,9.864e-05,2]
[348332996,1736448644382,-1645.81,9.864e-05,2]
[348332998,1736448644391,-500.0,9.864e-05,2]
[348333000,1736448644402,-726.34,9.864e-05,2]
[348333002,1736448644411,-576.71,9.864e-05,2]
[348333004,1736448644421,-1530.04,9.864e-05,2]
[348333005,1736448644432,-500.0,9.864e-05,2]
[348333007,1736448644445,-2506.01,9.89e-05,2]
[348333010,1736448644458,-3408.16,9.89e-05,2]
[348333011,1736448644468,-1883.65,9.89e-05,2]
[348333013,1736448644477,-524.74,9.89e-05,2]
[348333015,1736448644487,-1306.97,9.89e-05,2]
[348333017,1736448644496,-2918.6,9.89e-05,2]
[348333019,1736448644506,-500.0,9.89e-05,2]
[348333021,1736448644515,-500.0,9.89e-05,2]
[348333023,1736448644525,-854.94,9.89e-05,2]
[348333025,1736448644535,-500.0,9.89e-05,2]
[348333027,1736448644545,-2476.91,9.89e-05,2]
[348333029,1736448644555,-4308.11406707,9.89e-05,2]
[348333031,1736448644565,-150.0,9.909e-05,2]
[348333033,1736448644575,-4308.11406707,9.918e-05,2]
[348333035,1736448644584,-4308.11406707,9.945e-05,2]
[348333037,1736448644594,-201.19472259,9.948e-05,2]
[348333039,1736448644603,-701.45,9.964e-05,2]
[348333041,1736448644612,-2293.01,9.964e-05,2]
[348333043,1736448644622,-1116.6,9.964e-05,2]
[348333045,1736448644632,-710.74,9.964e-05,2]
[348333047,1736448644641,-500.0,9.964e-05,2]
[348333049,1736448644651,-500.0,9.964e-05,2]
[348333051,1736448644661,-3288.57,9.964e-05,2]
[348333053,1736448644670,-500.0,9.964e-05,2]
[348333055,1736448644680,-977.29,9.964e-05,2]
[348333057,1736448644692,-637.48,9.964e-05,2]
[348333059,1736448644702,-631.47,9.964e-05,2]
[348333061,1736448644711,-500.0,9.964e-05,2]
[348333063,1736448644721,-500.0,9.964e-05,2]
[348333065,1736448644730,-1025.08,9.964e-05,2]
[348333067,1736448644741,-1220.13,9.964e-05,2]
[348333069,1736448644750,-1450.88,9.964e-05,2]
[348333071,1736448644759,-500.0,9.965e-05,2]
[348333073,1736448644768,-1176.47,9.965e-05,2]
[348333075,1736448644777,-648.85,9.965e-05,2]
[348333077,1736448644786,-1678.37,9.965e-05,2]
[348333079,1736448644797,-1007.24,9.965e-05,2]
[348333081,1736448644806,-1386.07,9.965e-05,2]
[348333083,1736448644816,-1459.87,9.965e-05,2]
[348333085,1736448644826,-1791.42,9.965e-05,2]
[348333086,1736448644836,-1927.71,9.965e-05,2]
[348333087,1736448644845,-918.93,9.966e-05,2]
[348333088,1736448644855,-918.35,9.966e-05,2]
[348333089,1736448644865,-2162.57,9.966e-05,2]
[348333090,1736448644874,-500.0,9.966e-05,2]
[348333091,1736448644883,-732.74,9.966e-05,2]
[348333092,1736448644894,-1021.96,9.966e-05,2]
[348333093,1736448644903,-500.0,9.966e-05,2]
[348333094,1736448644913,-1416.66,9.966e-05,2]
[348333095,1736448644923,-1000.0,9.966e-05,2]
[348333096,1736448644933,-900.63,9.966e-05,2]
[348333097,1736448644945,-500.0,9.966e-05,2]
[348333098,1736448644955,-1931.6,9.966e-05,2]
[348333099,1736448644965,-1450.83,9.966e-05,2]
[348333100,1736448644975,-4308.11406707,9.973e-05,2]
[348333101,1736448644984,-151.82733164,9.973e-05,2]
[348333102,1736448644994,-198.1551735,9.973e-05,2]
[348333103,1736448645003,-500.0,9.973e-05,2]
[348333104,1736448645012,-500.0,9.973e-05,2]
[348333105,1736448645022,-500.0,9.973e-05,2]
[348333106,1736448645032,-1000.0,9.992e-05,2]
[348333107,1736448645042,-700.0,9.997e-05,2]
[348333108,1736448645053,-1800.0,9.997e-05,2]
[348333109,1736448645063,-467.98,9.999e-05,2]
[348333110,1736448645073,-500.0,9.999e-05,2]
[348333111,1736448645084,-500.0,9.999e-05,2]
[348333112,1736448645094,-351.81154589,9.999e-05,2]
[348333113,1736448645105,-500.0,9.999e-05,2]
[348333114,1736448645115,-500.0,9.999e-05,2]
[348333115,1736448645126,-500.0,9.999e-05,2]
[348333116,1736448645136,-500.0,9.999e-05,2]
[348333117,1736448645147,-500.0,9.999e-05,2]
[348333118,1736448645156,-500.0,9.999e-05,2]
[348333119,1736448645167,-500.0,9.999e-05,2]
[348333120,1736448645178,-500.0,9.999e-05,2]
[348333121,1736448645189,-500.0,9.999e-05,2]
[348333122,1736448645198,-500.0,9.999e-05,2]
[348333123,1736448645207,-500.0,9.999e-05,2]
[348333124,1736448645216,-500.0,9.999e-05,2]
[348333125,1736448645227,-500.0,9.999e-05,2]
[348333126,1736448645236,-500.0,9.999e-05,2]
[348333127,1736448645247,-500.0,9.999e-05,2]
[348333128,1736448645256,-722.61,9.999e-05,2]
[348333129,1736448645265,-500.0,9.999e-05,2]
[348333130,1736448645275,-500.0,9.999e-05,2]
[348333131,1736448645284,-500.0,9.999e-05,2]
[348333132,1736448645294,-500.0,9.999e-05,2]
[348333133,1736448645303,-500.0,9.999e-05,2]
[348333134,1736448645313,-3126.7,9.999e-05,2]
[348333135,1736448645324,-500.0,9.999e-05,2]
[348333136,1736448645333,-1072.16,9.999e-05,2]
[348333137,1736448645343,-500.0,9.999e-05,2]
[348333138,1736448645352,-500.0,9.999e-05,2]
[348333139,1736448645362,-1973.72,9.999e-05,2]
[348333140,1736448645371,-500.0,9.999e-05,2]
[348333141,1736448645382,-500.0,9.999e-05,2]
[348333142,1736448645392,-500.0,9.999e-05,2]
[348333143,1736448645402,-500.0,9.999e-05,2]
[348333144,1736448645412,-5571.61,9.999e-05,2]
[348333145,1736448645423,-500.0,9.999e-05,2]
[348333146,1736448645432,-500.0,9.999e-05,2]
[348333147,1736448645443,-500.0,9.999e-05,2]
[348333148,1736448645455,-500.0,9.999e-05,2]
[348333149,1736448645465,-850.75,9.999e-05,2]
[348333150,1736448645474,-500.0,9.999e-05,2]
[348333151,1736448645484,-500.0,9.999e-05,2]
[348333152,1736448645493,-500.0,9.999e-05,2]
[348333153,1736448645503,-1320.46,9.999e-05,2]
[348333154,1736448645513,-500.0,9.999e-05,2]
[348333155,1736448645524,-500.0,9.999e-05,2]
[348333156,1736448645534,-500.0,9.999e-05,2]
[348333157,1736448645543,-500.0,9.999e-05,2]
[348333158,1736448645553,-1091.17,9.999e-05,2]
[348333159,1736448645563,-500.0,9.999e-05,2]
[348333160,1736448645573,-500.0,9.999e-05,2]
[348333161,1736448645583,-500.0,9.999e-05,2]
[348333162,1736448645593,-500.0,9.999e-05,2]
[348333163,1736448645603,-500.0,9.999e-05,2]
[348333164,1736448645613,-2072.28,9.999e-05,2]
[348333165,1736448645623,-500.0,9.999e-05,2]
[348333166,1736448645633,-500.0,9.999e-05,2]
[348333167,1736448645643,-500.0,9.999e-05,2]
[348333168,1736448645653,-500.0,9.999e-05,2]
[348333169,1736448645663,-500.0,9.999e-05,2]
[348333170,1736448645672,-4451.36,9.999e-05,2]
[348333171,1736448645682,-500.0,9.999e-05,2]
[348333172,1736448645693,-500.0,9.999e-05,2]
[348333173,1736448645703,-500.0,9.999e-05,2]
[348333174,1736448645714,-500.0,9.999e-05,2]
[348333175,1736448645723,-1224.82,9.999e-05,2]
[348333176,1736448645733,-500.0,9.999e-05,2]
[348333177,1736448645743,-500.0,9.999e-05,2]
[348333178,1736448645752,-500.0,9.999e-05,2]
[348333179,1736448645762,-715.73,9.999e-05,2]
[348333180,1736448645772,-500.0,9.999e-05,2]
[348333181,1736448645781,-1754.55,9.999e-05,2]
[348333182,1736448645790,-500.0,9.999e-05,2]
[348333183,1736448645800,-500.0,9.999e-05,2]
[348333184,1736448645810,-929.94,9.999e-05,2]
[348333185,1736448645821,-500.0,9.999e-05,2]
[348333186,1736448645831,-500.0,9.999e-05,2]
[348333187,1736448645840,-198.06413225,9.999e-05,2]
[348333188,1736448645851,-500.0,9.999e-05,2]
[348333189,1736448645860,-500.0,9.999e-05,2]
[348333190,1736448645869,-1227.6,9.999e-05,2]
[348333191,1736448645879,-500.0,9.999e-05,2]
[348333192,1736448645888,-500.0,9.999e-05,2]
[348333193,1736448645897,-500.0,9.999e-05,2]
[348333194,1736448645907,-500.0,9.999e-05,2]
[348333195,1736448645917,-500.0,9.999e-05,2]
[348333196,1736448645928,-500.0,9.999e-05,2]
[348333197,1736448645939,-500.0,9.999e-05,2]
[348333198,1736448645948,-500.0,9.999e-05,2]
[348333199,1736448645957,-500.0,9.999e-05,2]
[348333200,1736448645967,-500.0,9.999e-05,2]
[348333201,1736448645977,-2328.82,9.999e-05,2]
[348333202,1736448645987,-500.0,9.999e-05,2]
[348333203,1736448645997,-570.80148176,9.999e-05,2]
[348333204,1736448646007,-1762.22,9.999e-05,2]
[348333205,1736448646017,-500.0,9.999e-05,2]
[348333206,1736448646028,-500.0,9.999e-05,2]
[348333207,1736448646037,-500.0,9.999e-05,2]
[348333208,1736448646047,-500.0,9.999e-05,2]
[348333209,1736448646057,-500.0,9.999e-05,2]
[348333210,1736448646067,-500.0,9.999e-05,2]
[348333211,1736448646076,-500.0,9.999e-05,2]
[348333212,1736448646086,-500.0,9.999e-05,2]
[348333213,1736448646095,-500.0,9.999e-05,2]
[348333214,1736448646104,-1514.56,9.999e-05,2]
[348333215,1736448646113,-2451752.91249183,0.0001,5]
[348333216,1736448646128,-629.49634078,0.0001,5]
[348333217,1736448646140,-1003.5,0.0001,5]
[348333218,1736448646157,-2354.32652758,0.0001,5]
[348333219,1736448646169,-525.45,0.0001,5]
[348333223,1736448646550,-500.0,9.863e-05,2]
[348333224,1736448646560,-500.0,9.999e-05,2]
[348333225,1736448646570,-1676.92468286,0.0001,5]
[348333226,1736448646582,-980.875,0.0001,5]
[348333227,1736448646593,-327.635,0.0001,5]
[348333228,1736448646737,-500.0,9.862e-05,2]
[348333229,1736448646746,-2000.0,0.0001,5]
[348333230,1736448646858,-3727.88,0.0001,5]
[348333233,1736448646900,-778746.28232824,0.0001,5]
[348333235,1736448647478,-500.0,9.862e-05,2]
[348333236,1736448647489,-500.0,9.89e-05,2]
[348333237,1736448647500,-500.0,9.89e-05,2]
[348333238,1736448647510,-3163.7,0.0001,5]
[348333241,1736448900493,171.19222068,0.0002,120]
[348333242,1736448903113,156.4355777,0.0001,30]
[348333244,1736449352625,668.62,8.219e-05,2]
[348333256,1736449763886,-500.0,8.627e-05,2]
[348333257,1736449763913,-1400.0,8.627e-05,2]
[348333258,1736449763941,-234.15,8.774e-05,2]
[348333259,1736449763967,-462.45528088,8.774e-05,2]
[348333260,1736449763994,-300.0,8.836e-05,2]
[348333261,1736449764033,-15105.40987802,8.837e-05,2]
[348333262,1736449764062,-997.9848411,8.837e-05,2]
[348333263,1736449790061,500.0,8.22e-05,2]
[348333264,1736449817554,-11194.12,8.615e-05,2]
[348333265,1736449822166,1300.0,8.22e-05,2]
[348333266,1736449822512,500.0,8.22e-05,2]
[348333269,1736449831810,-2.0151589,8.837e-05,2]
[348333270,1736449831819,-166.98,8.86e-05,2]
[348333271,1736449831830,-150.0,8.931e-05,2]
[348333272,1736449831839,-150.0,8.964e-05,2]
[348333273,1736449831847,-150.0,9e-05,2]
[348333274,1736449831856,-150.0,9e-05,2]
[348333275,1736449831866,-150.0,9e-05,2]
[348333276,1736449831876,-300.0,9.054e-05,2]
[348333277,1736449831884,-9.4748411,9.086e-05,2]
[348333278,1736449831901,-140.5251589,9.086e-05,2]
[348333279,1736449831910,-250.0,9.093e-05,2]
[348333280,1736449831919,-177.65474988,9.093e-05,2]
[348333281,1736449831930,-360.04704331,9.093e-05,2]
[348333282,1736449831941,-515.46820681,9.093e-05,2]
[348333283,1736449831950,-150.0,9.124e-05,2]
[348333284,1736449831960,-150.0,9.125e-05,2]
[348333285,1736449831969,-150.0,9.196e-05,2]
[348333286,1736449831978,-462.45528087,9.207e-05,2]
[348333287,1736449831987,-150.0,9.25e-05,2]
[348333288,1736449831997,-150.0,9.25e-05,2]
[348333289,1736449832006,-150.0,9.309e-05,2]
[348333291,1736449832015,-150.0,9.375e-05,2]
[348333293,1736449832025,-150.0,9.445e-05,2]
[348333295,1736449832034,-150.0,9.5e-05,2]
[348333297,1736449832043,-150.0,9.5e-05,2]
[348333299,1736449832053,-297.06174537,9.538e-05,2]
[348333301,1736449832062,-1000.0,9.588e-05,2]
[348333303,1736449832071,-150.0,9.588e-05,2]
[348333305,1736449832080,-37945.9398387,9.589e-05,2]
[348333307,1736449832091,-335.7036,9.589e-05,2]
[348333318,1736449832181,-387.2089524,9.589e-05,2]
[348333325,1736449832234,-2622.96567147,9.589e-05,2]
[348333327,1736449832247,-2643.39459498,9.589e-05,2]
[348333332,1736449832258,-5856.97893899,9.589e-05,2]
[348333441,1736449837646,-5079.00840346,9.589e-05,2]
[348333442,1736449837655,-1300.0,9.59e-05,2]
[348333443,1736449837664,-500.0,9.59e-05,2]
[348333444,1736449837674,-150.0,9.639e-05,2]
[348333445,1736449837683,-3302.88745143,9.639e-05,2]
[348333446,1736449837693,-462.45528087,9.639e-05,2]
[348333447,1736449837703,-5046.0713,9.662e-05,2]
[348333448,1736449837712,-500.0,9.664e-05,2]